{"text_format":"1","workbook":"xlsx","n_sheets":1,"sheets":["Лист1"],"not_rendered":{"charts":0,"images":0,"macros":1,"external_links":0,"defined_names":0,"comments":0,"pivot_tables":0},"unopened":[],"bounds":{"document_bytes":16777216,"sheet_cells":100000,"rows_first":2000,"rows_last":500,"rows_between":2000,"halvings":0,"cell_chars":16384,"cell_head_chars":4096},"cells_cut":0,"cells_raw":0,"read":"whole","date_system":"1900"}

{"sheet":"Лист1","index":0,"n_rows":688,"n_cols":10,"rows_kept":688,"cut":false,"hidden":false,"merged":[]}
["москва","Альметьевск","Брянск","Благовещенск","Владикавказ"]
["hts 2000 price в москва",{"$f":"SUBSTITUTE(A2,A1, $B$1)","v":"hts 2000 price в Альметьевск"},{"$f":"SUBSTITUTE(B2,$B$1, $C$1)","v":"hts 2000 price в Брянск"},{"$f":"SUBSTITUTE(C2,C$1, D$1)","v":"hts 2000 price в Благовещенск"},{"$f":"SUBSTITUTE(D2,D$1, E$1)","v":"hts 2000 price в Владикавказ"},null,null,null,null,{"$f":"Уник_по_критер_($A$2:$H$101,,,,,1,1)","v":"hts 2000 price Альметьевск"}]
["hts 2000 price москва",{"$f":"SUBSTITUTE(A3,\"москва\", $B$1)","v":"hts 2000 price Альметьевск"},{"$f":"SUBSTITUTE(B3,$B$1, $C$1)","v":"hts 2000 price Брянск"},{"$f":"SUBSTITUTE(C3,$C$1, D$1)","v":"hts 2000 price Благовещенск"},{"$f":"SUBSTITUTE(D3,D$1, E$1)","v":"hts 2000 price Владикавказ"},null,null,null,null,"hts 2000 price Благовещенск"]
["hts 2000 в москва buy",{"$f":"SUBSTITUTE(A4,\"москва\", $B$1)","v":"hts 2000 в Альметьевск buy"},"hts 2000 в Брянск buy",{"$f":"SUBSTITUTE(C4,$C$1, D$1)","v":"hts 2000 в Благовещенск buy"},"hts 2000 в Владикавказ buy",null,null,null,null,"hts 2000 price Брянск"]
["hts 2000 в москва -buy -price -sale -алюминия -купить -припой -продам -цена",{"$f":"SUBSTITUTE(A5,\"москва\", $B$1)","v":"hts 2000 в Альметьевск -buy -price -sale -алюминия -купить -припой -продам -цена"},"hts 2000 в Брянск -buy -price -sale -алюминия -купить -припой -продам -цена","hts 2000 в Благовещенск -buy -price -sale -алюминия -купить -припой -продам -цена","hts 2000 в Владикавказ -buy -price -sale -алюминия -купить -припой -продам -цена",null,null,null,null,"hts 2000 price в Альметьевск"]
["hts 2000 в москва sale","hts 2000 в Альметьевск sale","hts 2000 в Брянск sale","hts 2000 в Благовещенск sale","hts 2000 в Владикавказ sale",null,null,null,null,"hts 2000 price в Благовещенск"]
["hts 2000 в москва алюминия купить","hts 2000 в Альметьевск алюминия купить","hts 2000 в Брянск алюминия купить","hts 2000 в Благовещенск алюминия купить","hts 2000 в Владикавказ алюминия купить",null,null,null,null,"hts 2000 price в Брянск"]
["hts 2000 в москва алюминия -купить -пайки","hts 2000 в Альметьевск алюминия -купить -пайки","hts 2000 в Брянск алюминия -купить -пайки","hts 2000 в Благовещенск алюминия -купить -пайки","hts 2000 в Владикавказ алюминия -купить -пайки",null,null,null,null,"hts 2000 price в Владикавказ"]
["hts 2000 в москва где купить","hts 2000 в Альметьевск где купить","hts 2000 в Брянск где купить","hts 2000 в Благовещенск где купить","hts 2000 в Владикавказ где купить",null,null,null,null,"hts 2000 price в москва"]
["hts 2000 в москва для пайки алюминия","hts 2000 в Альметьевск для пайки алюминия","hts 2000 в Брянск для пайки алюминия","hts 2000 в Благовещенск для пайки алюминия","hts 2000 в Владикавказ для пайки алюминия",null,null,null,null,"hts 2000 price Владикавказ"]
["hts 2000 в москва купить -алюминия -где -припой -цена","hts 2000 в Альметьевск купить -алюминия -где -припой -цена","hts 2000 в Брянск купить -алюминия -где -припой -цена","hts 2000 в Благовещенск купить -алюминия -где -припой -цена","hts 2000 в Владикавказ купить -алюминия -где -припой -цена",null,null,null,null,"hts 2000 price москва"]
["hts 2000 в москва припой -купить","hts 2000 в Альметьевск припой -купить","hts 2000 в Брянск припой -купить","hts 2000 в Благовещенск припой -купить","hts 2000 в Владикавказ припой -купить",null,null,null,null,"hts 2000 Альметьевск -price -купить -припой -цена"]
["hts 2000 в москва продам","hts 2000 в Альметьевск продам","hts 2000 в Брянск продам","hts 2000 в Благовещенск продам","hts 2000 в Владикавказ продам",null,null,null,null,"hts 2000 Альметьевск -алюминия -купить -припой -цена"]
["hts 2000 в москва цена купить","hts 2000 в Альметьевск цена купить","hts 2000 в Брянск цена купить","hts 2000 в Благовещенск цена купить","hts 2000 в Владикавказ цена купить",null,null,null,null,"hts 2000 Альметьевск -купить -припой -продам -цена"]
["hts 2000 купить в москва brazing rods","hts 2000 купить в Альметьевск brazing rods","hts 2000 купить в Брянск brazing rods","hts 2000 купить в Благовещенск brazing rods","hts 2000 купить в Владикавказ brazing rods",null,null,null,null,"hts 2000 Альметьевск алюминия -купить -пайки"]
["hts 2000 купить в москва rods -brazing","hts 2000 купить в Альметьевск rods -brazing","hts 2000 купить в Брянск rods -brazing","hts 2000 купить в Благовещенск rods -brazing","hts 2000 купить в Владикавказ rods -brazing",null,null,null,null,"hts 2000 Альметьевск алюминия купить -пайки"]
["hts 2000 купить в москва -rods -алюминия -где -дешево -недорого -отзывы -припой -состав -цена","hts 2000 купить в Альметьевск -rods -алюминия -где -дешево -недорого -отзывы -припой -состав -цена","hts 2000 купить в Брянск -rods -алюминия -где -дешево -недорого -отзывы -припой -состав -цена","hts 2000 купить в Благовещенск -rods -алюминия -где -дешево -недорого -отзывы -припой -состав -цена","hts 2000 купить в Владикавказ -rods -алюминия -где -дешево -недорого -отзывы -припой -состав -цена",null,null,null,null,"hts 2000 Альметьевск где купить"]
["hts 2000 купить в москва -rods -алюминия -где -припой -цена","hts 2000 купить в Альметьевск -rods -алюминия -где -припой -цена","hts 2000 купить в Брянск -rods -алюминия -где -припой -цена","hts 2000 купить в Благовещенск -rods -алюминия -где -припой -цена","hts 2000 купить в Владикавказ -rods -алюминия -где -припой -цена",null,null,null,null,"hts 2000 Альметьевск для пайки алюминия -купить -припой"]
["hts 2000 купить в москва дешево -припой","hts 2000 купить в Альметьевск дешево -припой","hts 2000 купить в Брянск дешево -припой","hts 2000 купить в Благовещенск дешево -припой","hts 2000 купить в Владикавказ дешево -припой",null,null,null,null,"hts 2000 Альметьевск для пайки алюминия купить"]
["hts 2000 купить в москва ибп","hts 2000 купить в Альметьевск ибп","hts 2000 купить в Брянск ибп","hts 2000 купить в Благовещенск ибп","hts 2000 купить в Владикавказ ибп",null,null,null,null,"hts 2000 Альметьевск купить -алюминия -где -цена"]
["hts 2000 купить в москва недорого -припой","hts 2000 купить в Альметьевск недорого -припой","hts 2000 купить в Брянск недорого -припой","hts 2000 купить в Благовещенск недорого -припой","hts 2000 купить в Владикавказ недорого -припой",null,null,null,null,"hts 2000 Альметьевск припой"]
["hts 2000 купить в москва цена -припой","hts 2000 купить в Альметьевск цена -припой","hts 2000 купить в Брянск цена -припой","hts 2000 купить в Благовещенск цена -припой","hts 2000 купить в Владикавказ цена -припой",null,null,null,null,"hts 2000 Альметьевск припой -купить"]
["hts 2000 купить в москвае brazing rods","hts 2000 купить в Альметьевске brazing rods","hts 2000 купить в Брянске brazing rods","hts 2000 купить в Благовещенске brazing rods","hts 2000 купить в Владикавказе brazing rods",null,null,null,null,"hts 2000 Альметьевск припой для пайки алюминия"]
["hts 2000 купить в москвае rods -brazing","hts 2000 купить в Альметьевске rods -brazing","hts 2000 купить в Брянске rods -brazing","hts 2000 купить в Благовещенске rods -brazing","hts 2000 купить в Владикавказе rods -brazing",null,null,null,null,"hts 2000 Альметьевск цена"]
["hts 2000 купить в москвае -rods -алюминия -где -припой -цена","hts 2000 купить в Альметьевске -rods -алюминия -где -припой -цена","hts 2000 купить в Брянске -rods -алюминия -где -припой -цена","hts 2000 купить в Благовещенске -rods -алюминия -где -припой -цена","hts 2000 купить в Владикавказе -rods -алюминия -где -припой -цена",null,null,null,null,"hts 2000 Альметьевск цена -купить"]
["hts 2000 купить в москвае -алюминия -где -припой -цена","hts 2000 купить в Альметьевске -алюминия -где -припой -цена","hts 2000 купить в Брянске -алюминия -где -припой -цена","hts 2000 купить в Благовещенске -алюминия -где -припой -цена","hts 2000 купить в Владикавказе -алюминия -где -припой -цена",null,null,null,null,"hts 2000 Альметьевск цена купить"]
["hts 2000 купить в москвае припой","hts 2000 купить в Альметьевске припой","hts 2000 купить в Брянске припой","hts 2000 купить в Благовещенске припой","hts 2000 купить в Владикавказе припой",null,null,null,null,"hts 2000 Альметьевск цена купить -припой"]
["hts 2000 купить москва brazing rods","hts 2000 купить Альметьевск brazing rods","hts 2000 купить Брянск brazing rods","hts 2000 купить Благовещенск brazing rods","hts 2000 купить Владикавказ brazing rods",null,null,null,null,"hts 2000 Благовещенск -price -купить -припой -цена"]
["hts 2000 купить москва rods -brazing","hts 2000 купить Альметьевск rods -brazing","hts 2000 купить Брянск rods -brazing","hts 2000 купить Благовещенск rods -brazing","hts 2000 купить Владикавказ rods -brazing",null,null,null,null,"hts 2000 Благовещенск -алюминия -купить -припой -цена"]
["hts 2000 купить москва алюминия","hts 2000 купить Альметьевск алюминия","hts 2000 купить Брянск алюминия","hts 2000 купить Благовещенск алюминия","hts 2000 купить Владикавказ алюминия",null,null,null,null,"hts 2000 Благовещенск -купить -припой -продам -цена"]
["hts 2000 купить москва алюминия -припой","hts 2000 купить Альметьевск алюминия -припой","hts 2000 купить Брянск алюминия -припой","hts 2000 купить Благовещенск алюминия -припой","hts 2000 купить Владикавказ алюминия -припой",null,null,null,null,"hts 2000 Благовещенск алюминия -купить -пайки"]
["hts 2000 купить москва -где -отзывы -припой -состав","hts 2000 купить Альметьевск -где -отзывы -припой -состав","hts 2000 купить Брянск -где -отзывы -припой -состав","hts 2000 купить Благовещенск -где -отзывы -припой -состав","hts 2000 купить Владикавказ -где -отзывы -припой -состав",null,null,null,null,"hts 2000 Благовещенск алюминия купить -пайки"]
["hts 2000 купить москва интернет магазин","hts 2000 купить Альметьевск интернет магазин","hts 2000 купить Брянск интернет магазин","hts 2000 купить Благовещенск интернет магазин","hts 2000 купить Владикавказ интернет магазин",null,null,null,null,"hts 2000 Благовещенск где купить"]
["hts 2000 купить москва припой нтс","hts 2000 купить Альметьевск припой нтс","hts 2000 купить Брянск припой нтс","hts 2000 купить Благовещенск припой нтс","hts 2000 купить Владикавказ припой нтс",null,null,null,null,"hts 2000 Благовещенск для пайки алюминия -купить -припой"]
["hts 2000 купить москва цена -припой","hts 2000 купить Альметьевск цена -припой","hts 2000 купить Брянск цена -припой","hts 2000 купить Благовещенск цена -припой","hts 2000 купить Владикавказ цена -припой",null,null,null,null,"hts 2000 Благовещенск для пайки алюминия купить"]
["hts 2000 москва -price -купить -припой -цена","hts 2000 Альметьевск -price -купить -припой -цена","hts 2000 Брянск -price -купить -припой -цена","hts 2000 Благовещенск -price -купить -припой -цена","hts 2000 Владикавказ -price -купить -припой -цена",null,null,null,null,"hts 2000 Благовещенск купить -алюминия -где -цена"]
["hts 2000 москва алюминия купить -пайки","hts 2000 Альметьевск алюминия купить -пайки","hts 2000 Брянск алюминия купить -пайки","hts 2000 Благовещенск алюминия купить -пайки","hts 2000 Владикавказ алюминия купить -пайки",null,null,null,null,"hts 2000 Благовещенск припой"]
["hts 2000 москва алюминия -купить -пайки","hts 2000 Альметьевск алюминия -купить -пайки","hts 2000 Брянск алюминия -купить -пайки","hts 2000 Благовещенск алюминия -купить -пайки","hts 2000 Владикавказ алюминия -купить -пайки",null,null,null,null,"hts 2000 Благовещенск припой -купить"]
["hts 2000 москва -алюминия -купить -припой -цена","hts 2000 Альметьевск -алюминия -купить -припой -цена","hts 2000 Брянск -алюминия -купить -припой -цена","hts 2000 Благовещенск -алюминия -купить -припой -цена","hts 2000 Владикавказ -алюминия -купить -припой -цена",null,null,null,null,"hts 2000 Благовещенск припой для пайки алюминия"]
["hts 2000 москва где купить","hts 2000 Альметьевск где купить","hts 2000 Брянск где купить","hts 2000 Благовещенск где купить","hts 2000 Владикавказ где купить",null,null,null,null,"hts 2000 Благовещенск цена"]
["hts 2000 москва для пайки алюминия купить","hts 2000 Альметьевск для пайки алюминия купить","hts 2000 Брянск для пайки алюминия купить","hts 2000 Благовещенск для пайки алюминия купить","hts 2000 Владикавказ для пайки алюминия купить",null,null,null,null,"hts 2000 Благовещенск цена -купить"]
["hts 2000 москва для пайки алюминия -купить -припой","hts 2000 Альметьевск для пайки алюминия -купить -припой","hts 2000 Брянск для пайки алюминия -купить -припой","hts 2000 Благовещенск для пайки алюминия -купить -припой","hts 2000 Владикавказ для пайки алюминия -купить -припой",null,null,null,null,"hts 2000 Благовещенск цена купить"]
["hts 2000 москва купить -алюминия -где -цена","hts 2000 Альметьевск купить -алюминия -где -цена","hts 2000 Брянск купить -алюминия -где -цена","hts 2000 Благовещенск купить -алюминия -где -цена","hts 2000 Владикавказ купить -алюминия -где -цена",null,null,null,null,"hts 2000 Благовещенск цена купить -припой"]
["hts 2000 москва -купить -припой -продам -цена","hts 2000 Альметьевск -купить -припой -продам -цена","hts 2000 Брянск -купить -припой -продам -цена","hts 2000 Благовещенск -купить -припой -продам -цена","hts 2000 Владикавказ -купить -припой -продам -цена",null,null,null,null,"hts 2000 Брянск -price -купить -припой -цена"]
["hts 2000 москва припой","hts 2000 Альметьевск припой","hts 2000 Брянск припой","hts 2000 Благовещенск припой","hts 2000 Владикавказ припой",null,null,null,null,"hts 2000 Брянск -алюминия -купить -припой -цена"]
["hts 2000 москва припой для пайки алюминия","hts 2000 Альметьевск припой для пайки алюминия","hts 2000 Брянск припой для пайки алюминия","hts 2000 Благовещенск припой для пайки алюминия","hts 2000 Владикавказ припой для пайки алюминия",null,null,null,null,"hts 2000 Брянск -купить -припой -продам -цена"]
["hts 2000 москва припой -купить","hts 2000 Альметьевск припой -купить","hts 2000 Брянск припой -купить","hts 2000 Благовещенск припой -купить","hts 2000 Владикавказ припой -купить",null,null,null,null,"hts 2000 Брянск алюминия -купить -пайки"]
["hts 2000 москва цена","hts 2000 Альметьевск цена","hts 2000 Брянск цена","hts 2000 Благовещенск цена","hts 2000 Владикавказ цена",null,null,null,null,"hts 2000 Брянск алюминия купить -пайки"]
["hts 2000 москва цена купить","hts 2000 Альметьевск цена купить","hts 2000 Брянск цена купить","hts 2000 Благовещенск цена купить","hts 2000 Владикавказ цена купить",null,null,null,null,"hts 2000 Брянск где купить"]
["hts 2000 москва цена -купить","hts 2000 Альметьевск цена -купить","hts 2000 Брянск цена -купить","hts 2000 Благовещенск цена -купить","hts 2000 Владикавказ цена -купить",null,null,null,null,"hts 2000 Брянск для пайки алюминия -купить -припой"]
["hts 2000 москва цена купить -припой","hts 2000 Альметьевск цена купить -припой","hts 2000 Брянск цена купить -припой","hts 2000 Благовещенск цена купить -припой","hts 2000 Владикавказ цена купить -припой",null,null,null,null,"hts 2000 Брянск для пайки алюминия купить"]
["hts 2000 отзывы купить москва","hts 2000 отзывы купить Альметьевск","hts 2000 отзывы купить Брянск","hts 2000 отзывы купить Благовещенск","hts 2000 отзывы купить Владикавказ",null,null,null,null,"hts 2000 Брянск купить -алюминия -где -цена"]
["hts 2000 отзывы купить москва -припой","hts 2000 отзывы купить Альметьевск -припой","hts 2000 отзывы купить Брянск -припой","hts 2000 отзывы купить Благовещенск -припой","hts 2000 отзывы купить Владикавказ -припой",null,null,null,null,"hts 2000 Брянск припой"]
["hts 2000 продам москва","hts 2000 продам Альметьевск","hts 2000 продам Брянск","hts 2000 продам Благовещенск","hts 2000 продам Владикавказ",null,null,null,null,"hts 2000 Брянск припой -купить"]
["hts 2000 состав купить москва","hts 2000 состав купить Альметьевск","hts 2000 состав купить Брянск","hts 2000 состав купить Благовещенск","hts 2000 состав купить Владикавказ",null,null,null,null,"hts 2000 Брянск припой для пайки алюминия"]
["hts 2000 состав цена москва","hts 2000 состав цена Альметьевск","hts 2000 состав цена Брянск","hts 2000 состав цена Благовещенск","hts 2000 состав цена Владикавказ",null,null,null,null,"hts 2000 Брянск цена"]
["hts 2000 цена в москвае -купить","hts 2000 цена в Альметьевске -купить","hts 2000 цена в Брянске -купить","hts 2000 цена в Благовещенске -купить","hts 2000 цена в Владикавказе -купить",null,null,null,null,"hts 2000 Брянск цена -купить"]
["hts 2000 цена москва brazing rods","hts 2000 цена Альметьевск brazing rods","hts 2000 цена Брянск brazing rods","hts 2000 цена Благовещенск brazing rods","hts 2000 цена Владикавказ brazing rods",null,null,null,null,"hts 2000 Брянск цена купить"]
["hts 2000 цена москва rods -brazing","hts 2000 цена Альметьевск rods -brazing","hts 2000 цена Брянск rods -brazing","hts 2000 цена Благовещенск rods -brazing","hts 2000 цена Владикавказ rods -brazing",null,null,null,null,"hts 2000 Брянск цена купить -припой"]
["hts 2000 цена москва -rods -алюминия -запорожье -инструкция -купить -припой -состав -черновцы","hts 2000 цена Альметьевск -rods -алюминия -запорожье -инструкция -купить -припой -состав -черновцы","hts 2000 цена Брянск -rods -алюминия -запорожье -инструкция -купить -припой -состав -черновцы","hts 2000 цена Благовещенск -rods -алюминия -запорожье -инструкция -купить -припой -состав -черновцы","hts 2000 цена Владикавказ -rods -алюминия -запорожье -инструкция -купить -припой -состав -черновцы",null,null,null,null,"hts 2000 в Альметьевск -buy -price -sale -алюминия -купить -припой -продам -цена"]
["hts 2000 цена москва алюминия","hts 2000 цена Альметьевск алюминия","hts 2000 цена Брянск алюминия","hts 2000 цена Благовещенск алюминия","hts 2000 цена Владикавказ алюминия",null,null,null,null,"hts 2000 в Альметьевск buy"]
["hts 2000 цена москва запорожье","hts 2000 цена Альметьевск запорожье","hts 2000 цена Брянск запорожье","hts 2000 цена Благовещенск запорожье","hts 2000 цена Владикавказ запорожье",null,null,null,null,"hts 2000 в Альметьевск sale"]
["hts 2000 цена москва инструкция","hts 2000 цена Альметьевск инструкция","hts 2000 цена Брянск инструкция","hts 2000 цена Благовещенск инструкция","hts 2000 цена Владикавказ инструкция",null,null,null,null,"hts 2000 в Альметьевск алюминия -купить -пайки"]
["hts 2000 цена москва -купить","hts 2000 цена Альметьевск -купить","hts 2000 цена Брянск -купить","hts 2000 цена Благовещенск -купить","hts 2000 цена Владикавказ -купить",null,null,null,null,"hts 2000 в Альметьевск алюминия купить"]
["hts 2000 цена москва -купить","hts 2000 цена Альметьевск -купить","hts 2000 цена Брянск -купить","hts 2000 цена Благовещенск -купить","hts 2000 цена Владикавказ -купить",null,null,null,null,"hts 2000 в Альметьевск где купить"]
["hts 2000 цена москва купить -припой","hts 2000 цена Альметьевск купить -припой","hts 2000 цена Брянск купить -припой","hts 2000 цена Благовещенск купить -припой","hts 2000 цена Владикавказ купить -припой",null,null,null,null,"hts 2000 в Альметьевск для пайки алюминия"]
["hts 2000 цена москва -купить -украина","hts 2000 цена Альметьевск -купить -украина",{"$f":"SUBSTITUTE(B67,$B$1, $C$1)","v":"hts 2000 цена Брянск -купить -украина"},"hts 2000 цена Благовещенск -купить -украина",{"$f":"SUBSTITUTE(D67,D$1, E$1)","v":"hts 2000 цена Владикавказ -купить -украина"},null,null,null,null,"hts 2000 в Альметьевск купить -алюминия -где -припой -цена"]
["hts 2000 цена москва припой -купить","hts 2000 цена Альметьевск припой -купить","hts 2000 цена Брянск припой -купить",{"$f":"SUBSTITUTE(C68,$C$1, D$1)","v":"hts 2000 цена Благовещенск припой -купить"},"hts 2000 цена Владикавказ припой -купить",null,null,null,null,"hts 2000 в Альметьевск припой -купить"]
["hts 2000 цена москва черновцы",{"$f":"SUBSTITUTE(A69,\"москва\", $B$1)","v":"hts 2000 цена Альметьевск черновцы"},"hts 2000 цена Брянск черновцы","hts 2000 цена Благовещенск черновцы","hts 2000 цена Владикавказ черновцы",null,null,null,null,"hts 2000 в Альметьевск продам"]
["hts 2000 цена украина москва","hts 2000 цена украина Альметьевск","hts 2000 цена украина Брянск","hts 2000 цена украина Благовещенск","hts 2000 цена украина Владикавказ",null,null,null,null,"hts 2000 в Альметьевск цена купить"]
["hts2000 припой купить в москва","hts2000 припой купить в Альметьевск","hts2000 припой купить в Брянск","hts2000 припой купить в Благовещенск","hts2000 припой купить в Владикавказ",null,null,null,null,"hts 2000 в Благовещенск -buy -price -sale -алюминия -купить -припой -продам -цена"]
["где купить hts 2000 в москва","где купить hts 2000 в Альметьевск","где купить hts 2000 в Брянск","где купить hts 2000 в Благовещенск","где купить hts 2000 в Владикавказ",null,null,null,null,"hts 2000 в Благовещенск buy"]
["где купить hts 2000 в москвае","где купить hts 2000 в Альметьевске","где купить hts 2000 в Брянске","где купить hts 2000 в Благовещенске","где купить hts 2000 в Владикавказе",null,null,null,null,"hts 2000 в Благовещенск sale"]
["где купить hts 2000 москва","где купить hts 2000 Альметьевск","где купить hts 2000 Брянск","где купить hts 2000 Благовещенск","где купить hts 2000 Владикавказ",null,null,null,null,"hts 2000 в Благовещенск алюминия -купить -пайки"]
["где купить hts 2000 москвае","где купить hts 2000 Альметьевске","где купить hts 2000 Брянске","где купить hts 2000 Благовещенске","где купить hts 2000 Владикавказе",null,null,null,null,"hts 2000 в Благовещенск алюминия купить"]
["купить в москва hts 2000 -rods -алюминия -где -ибп -припой -цена","купить в Альметьевск hts 2000 -rods -алюминия -где -ибп -припой -цена","купить в Брянск hts 2000 -rods -алюминия -где -ибп -припой -цена","купить в Благовещенск hts 2000 -rods -алюминия -где -ибп -припой -цена","купить в Владикавказ hts 2000 -rods -алюминия -где -ибп -припой -цена",null,null,null,null,"hts 2000 в Благовещенск где купить"]
["купить припой для пайки алюминия в москва","купить припой для пайки алюминия в Альметьевск","купить припой для пайки алюминия в Брянск","купить припой для пайки алюминия в Благовещенск","купить припой для пайки алюминия в Владикавказ",null,null,null,null,"hts 2000 в Благовещенск для пайки алюминия"]
["купить припой для пайки алюминия москва","купить припой для пайки алюминия Альметьевск","купить припой для пайки алюминия Брянск","купить припой для пайки алюминия Благовещенск","купить припой для пайки алюминия Владикавказ",null,null,null,null,"hts 2000 в Благовещенск купить -алюминия -где -припой -цена"]
["припой hts 2000 купить в москва","припой hts 2000 купить в Альметьевск","припой hts 2000 купить в Брянск","припой hts 2000 купить в Благовещенск","припой hts 2000 купить в Владикавказ",null,null,null,null,"hts 2000 в Благовещенск припой -купить"]
["припой hts 2000 купить в москва -алюминия -нтс -цена","припой hts 2000 купить в Альметьевск -алюминия -нтс -цена","припой hts 2000 купить в Брянск -алюминия -нтс -цена","припой hts 2000 купить в Благовещенск -алюминия -нтс -цена","припой hts 2000 купить в Владикавказ -алюминия -нтс -цена",null,null,null,null,"hts 2000 в Благовещенск продам"]
["припой hts 2000 купить в москва дешево","припой hts 2000 купить в Альметьевск дешево","припой hts 2000 купить в Брянск дешево","припой hts 2000 купить в Благовещенск дешево","припой hts 2000 купить в Владикавказ дешево",null,null,null,null,"hts 2000 в Благовещенск цена купить"]
["припой hts 2000 купить в москва -дешево -недорого -цена","припой hts 2000 купить в Альметьевск -дешево -недорого -цена","припой hts 2000 купить в Брянск -дешево -недорого -цена","припой hts 2000 купить в Благовещенск -дешево -недорого -цена","припой hts 2000 купить в Владикавказ -дешево -недорого -цена",null,null,null,null,"hts 2000 в Брянск -buy -price -sale -алюминия -купить -припой -продам -цена"]
["припой hts 2000 купить в москва недорого","припой hts 2000 купить в Альметьевск недорого","припой hts 2000 купить в Брянск недорого","припой hts 2000 купить в Благовещенск недорого","припой hts 2000 купить в Владикавказ недорого",null,null,null,null,"hts 2000 в Брянск buy"]
["припой hts 2000 купить в москва -цена","припой hts 2000 купить в Альметьевск -цена","припой hts 2000 купить в Брянск -цена","припой hts 2000 купить в Благовещенск -цена","припой hts 2000 купить в Владикавказ -цена",null,null,null,null,"hts 2000 в Брянск sale"]
["припой hts 2000 купить в москвае -цена","припой hts 2000 купить в Альметьевске -цена","припой hts 2000 купить в Брянске -цена","припой hts 2000 купить в Благовещенске -цена","припой hts 2000 купить в Владикавказе -цена",null,null,null,null,"hts 2000 в Брянск алюминия -купить -пайки"]
["припой hts 2000 купить москва -отзывы -цена","припой hts 2000 купить Альметьевск -отзывы -цена","припой hts 2000 купить Брянск -отзывы -цена","припой hts 2000 купить Благовещенск -отзывы -цена","припой hts 2000 купить Владикавказ -отзывы -цена",null,null,null,null,"hts 2000 в Брянск алюминия купить"]
["припой hts 2000 москва -купить","припой hts 2000 Альметьевск -купить","припой hts 2000 Брянск -купить","припой hts 2000 Благовещенск -купить","припой hts 2000 Владикавказ -купить",null,null,null,null,"hts 2000 в Брянск где купить"]
["припой hts 2000 москва -купить -цена","припой hts 2000 Альметьевск -купить -цена","припой hts 2000 Брянск -купить -цена","припой hts 2000 Благовещенск -купить -цена","припой hts 2000 Владикавказ -купить -цена",null,null,null,null,"hts 2000 в Брянск для пайки алюминия"]
["припой hts 2000 отзывы купить москвае","припой hts 2000 отзывы купить Альметьевске","припой hts 2000 отзывы купить Брянске","припой hts 2000 отзывы купить Благовещенске","припой hts 2000 отзывы купить Владикавказе",null,null,null,null,"hts 2000 в Брянск купить -алюминия -где -припой -цена"]
["припой hts 2000 цена купить в москва","припой hts 2000 цена купить в Альметьевск","припой hts 2000 цена купить в Брянск","припой hts 2000 цена купить в Благовещенск","припой hts 2000 цена купить в Владикавказ",null,null,null,null,"hts 2000 в Брянск припой -купить"]
["припой hts 2000 цена купить в москвае","припой hts 2000 цена купить в Альметьевске","припой hts 2000 цена купить в Брянске","припой hts 2000 цена купить в Благовещенске","припой hts 2000 цена купить в Владикавказе",null,null,null,null,"hts 2000 в Брянск продам"]
["припой hts 2000 цена купить москва","припой hts 2000 цена купить Альметьевск","припой hts 2000 цена купить Брянск","припой hts 2000 цена купить Благовещенск","припой hts 2000 цена купить Владикавказ",null,null,null,null,"hts 2000 в Брянск цена купить"]
["припой hts 2000 цена купить москва","припой hts 2000 цена купить Альметьевск","припой hts 2000 цена купить Брянск","припой hts 2000 цена купить Благовещенск","припой hts 2000 цена купить Владикавказ",null,null,null,null,"hts 2000 в Владикавказ -buy -price -sale -алюминия -купить -припой -продам -цена"]
["припой алюминия медь купить москва","припой алюминия медь купить Альметьевск","припой алюминия медь купить Брянск","припой алюминия медь купить Благовещенск","припой алюминия медь купить Владикавказ",null,null,null,null,"hts 2000 в Владикавказ buy"]
["припой алюминия цена москва","припой алюминия цена Альметьевск","припой алюминия цена Брянск","припой алюминия цена Благовещенск","припой алюминия цена Владикавказ",null,null,null,null,"hts 2000 в Владикавказ sale"]
["припой для алюминия hts 2000 купить москва","припой для алюминия hts 2000 купить Альметьевск","припой для алюминия hts 2000 купить Брянск","припой для алюминия hts 2000 купить Благовещенск","припой для алюминия hts 2000 купить Владикавказ",null,null,null,null,"hts 2000 в Владикавказ алюминия -купить -пайки"]
["припой для пайки алюминия hts 2000 москва","припой для пайки алюминия hts 2000 Альметьевск","припой для пайки алюминия hts 2000 Брянск","припой для пайки алюминия hts 2000 Благовещенск","припой для пайки алюминия hts 2000 Владикавказ",null,null,null,null,"hts 2000 в Владикавказ алюминия купить"]
["припой для пайки алюминия купить в москва","припой для пайки алюминия купить в Альметьевск","припой для пайки алюминия купить в Брянск","припой для пайки алюминия купить в Благовещенск","припой для пайки алюминия купить в Владикавказ",null,null,null,null,"hts 2000 в Владикавказ где купить"]
["припой для пайки алюминия купить в москвае","припой для пайки алюминия купить в Альметьевске","припой для пайки алюминия купить в Брянске","припой для пайки алюминия купить в Благовещенске","припой для пайки алюминия купить в Владикавказе",null,null,null,null,"hts 2000 в Владикавказ для пайки алюминия"]
["припой для пайки алюминия купить москва","припой для пайки алюминия купить Альметьевск","припой для пайки алюминия купить Брянск","припой для пайки алюминия купить Благовещенск","припой для пайки алюминия купить Владикавказ",null,null,null,null,"hts 2000 в Владикавказ купить -алюминия -где -припой -цена"]
["припой снт 2000 купить в москва","припой снт 2000 купить в Альметьевск","припой снт 2000 купить в Брянск","припой снт 2000 купить в Благовещенск","припой снт 2000 купить в Владикавказ",null,null,null,null,"hts 2000 в Владикавказ припой -купить"]
[null,null,null,null,null,null,null,null,null,"hts 2000 в Владикавказ продам"]
[null,null,null,null,null,null,null,null,null,"hts 2000 в Владикавказ цена купить"]
[null,null,null,null,null,null,null,null,null,"hts 2000 в москва -buy -price -sale -алюминия -купить -припой -продам -цена"]
[null,null,null,null,null,null,null,null,null,"hts 2000 в москва buy"]
[null,null,null,null,null,null,null,null,null,"hts 2000 в москва sale"]
[null,null,null,null,null,null,null,null,null,"hts 2000 в москва алюминия -купить -пайки"]
[null,null,null,null,null,null,null,null,null,"hts 2000 в москва алюминия купить"]
[null,null,null,null,null,null,null,null,null,"hts 2000 в москва где купить"]
[null,null,null,null,null,null,null,null,null,"hts 2000 в москва для пайки алюминия"]
[null,null,null,null,null,null,null,null,null,"hts 2000 в москва купить -алюминия -где -припой -цена"]
[null,null,null,null,null,null,null,null,null,"hts 2000 в москва припой -купить"]
[null,null,null,null,null,null,null,null,null,"hts 2000 в москва продам"]
[null,null,null,null,null,null,null,null,null,"hts 2000 в москва цена купить"]
[null,null,null,null,null,null,null,null,null,"hts 2000 Владикавказ -price -купить -припой -цена"]
[null,null,null,null,null,null,null,null,null,"hts 2000 Владикавказ -алюминия -купить -припой -цена"]
[null,null,null,null,null,null,null,null,null,"hts 2000 Владикавказ -купить -припой -продам -цена"]
[null,null,null,null,null,null,null,null,null,"hts 2000 Владикавказ алюминия -купить -пайки"]
[null,null,null,null,null,null,null,null,null,"hts 2000 Владикавказ алюминия купить -пайки"]
[null,null,null,null,null,null,null,null,null,"hts 2000 Владикавказ где купить"]
[null,null,null,null,null,null,null,null,null,"hts 2000 Владикавказ для пайки алюминия -купить -припой"]
[null,null,null,null,null,null,null,null,null,"hts 2000 Владикавказ для пайки алюминия купить"]
[null,null,null,null,null,null,null,null,null,"hts 2000 Владикавказ купить -алюминия -где -цена"]
[null,null,null,null,null,null,null,null,null,"hts 2000 Владикавказ припой"]
[null,null,null,null,null,null,null,null,null,"hts 2000 Владикавказ припой -купить"]
[null,null,null,null,null,null,null,null,null,"hts 2000 Владикавказ припой для пайки алюминия"]
[null,null,null,null,null,null,null,null,null,"hts 2000 Владикавказ цена"]
[null,null,null,null,null,null,null,null,null,"hts 2000 Владикавказ цена -купить"]
[null,null,null,null,null,null,null,null,null,"hts 2000 Владикавказ цена купить"]
[null,null,null,null,null,null,null,null,null,"hts 2000 Владикавказ цена купить -припой"]
[null,null,null,null,null,null,null,null,null,"hts 2000 купить Альметьевск -где -отзывы -припой -состав"]
[null,null,null,null,null,null,null,null,null,"hts 2000 купить Альметьевск brazing rods"]
[null,null,null,null,null,null,null,null,null,"hts 2000 купить Альметьевск rods -brazing"]
[null,null,null,null,null,null,null,null,null,"hts 2000 купить Альметьевск алюминия"]
[null,null,null,null,null,null,null,null,null,"hts 2000 купить Альметьевск алюминия -припой"]
[null,null,null,null,null,null,null,null,null,"hts 2000 купить Альметьевск интернет магазин"]
[null,null,null,null,null,null,null,null,null,"hts 2000 купить Альметьевск припой нтс"]
[null,null,null,null,null,null,null,null,null,"hts 2000 купить Альметьевск цена -припой"]
[null,null,null,null,null,null,null,null,null,"hts 2000 купить Благовещенск -где -отзывы -припой -состав"]
[null,null,null,null,null,null,null,null,null,"hts 2000 купить Благовещенск brazing rods"]
[null,null,null,null,null,null,null,null,null,"hts 2000 купить Благовещенск rods -brazing"]
[null,null,null,null,null,null,null,null,null,"hts 2000 купить Благовещенск алюминия"]
[null,null,null,null,null,null,null,null,null,"hts 2000 купить Благовещенск алюминия -припой"]
[null,null,null,null,null,null,null,null,null,"hts 2000 купить Благовещенск интернет магазин"]
[null,null,null,null,null,null,null,null,null,"hts 2000 купить Благовещенск припой нтс"]
[null,null,null,null,null,null,null,null,null,"hts 2000 купить Благовещенск цена -припой"]
[null,null,null,null,null,null,null,null,null,"hts 2000 купить Брянск -где -отзывы -припой -состав"]
[null,null,null,null,null,null,null,null,null,"hts 2000 купить Брянск brazing rods"]
[null,null,null,null,null,null,null,null,null,"hts 2000 купить Брянск rods -brazing"]
[null,null,null,null,null,null,null,null,null,"hts 2000 купить Брянск алюминия"]
[null,null,null,null,null,null,null,null,null,"hts 2000 купить Брянск алюминия -припой"]
[null,null,null,null,null,null,null,null,null,"hts 2000 купить Брянск интернет магазин"]
[null,null,null,null,null,null,null,null,null,"hts 2000 купить Брянск припой нтс"]
[null,null,null,null,null,null,null,null,null,"hts 2000 купить Брянск цена -припой"]
[null,null,null,null,null,null,null,null,null,"hts 2000 купить в Альметьевск -rods -алюминия -где -дешево -недорого -отзывы -припой -состав -цена"]
[null,null,null,null,null,null,null,null,null,"hts 2000 купить в Альметьевск -rods -алюминия -где -припой -цена"]
[null,null,null,null,null,null,null,null,null,"hts 2000 купить в Альметьевск brazing rods"]
[null,null,null,null,null,null,null,null,null,"hts 2000 купить в Альметьевск rods -brazing"]
[null,null,null,null,null,null,null,null,null,"hts 2000 купить в Альметьевск дешево -припой"]
[null,null,null,null,null,null,null,null,null,"hts 2000 купить в Альметьевск ибп"]
[null,null,null,null,null,null,null,null,null,"hts 2000 купить в Альметьевск недорого -припой"]
[null,null,null,null,null,null,null,null,null,"hts 2000 купить в Альметьевск цена -припой"]
[null,null,null,null,null,null,null,null,null,"hts 2000 купить в Альметьевске -rods -алюминия -где -припой -цена"]
[null,null,null,null,null,null,null,null,null,"hts 2000 купить в Альметьевске -алюминия -где -припой -цена"]
[null,null,null,null,null,null,null,null,null,"hts 2000 купить в Альметьевске brazing rods"]
[null,null,null,null,null,null,null,null,null,"hts 2000 купить в Альметьевске rods -brazing"]
[null,null,null,null,null,null,null,null,null,"hts 2000 купить в Альметьевске припой"]
[null,null,null,null,null,null,null,null,null,"hts 2000 купить в Благовещенск -rods -алюминия -где -дешево -недорого -отзывы -припой -состав -цена"]
[null,null,null,null,null,null,null,null,null,"hts 2000 купить в Благовещенск -rods -алюминия -где -припой -цена"]
[null,null,null,null,null,null,null,null,null,"hts 2000 купить в Благовещенск brazing rods"]
[null,null,null,null,null,null,null,null,null,"hts 2000 купить в Благовещенск rods -brazing"]
[null,null,null,null,null,null,null,null,null,"hts 2000 купить в Благовещенск дешево -припой"]
[null,null,null,null,null,null,null,null,null,"hts 2000 купить в Благовещенск ибп"]
[null,null,null,null,null,null,null,null,null,"hts 2000 купить в Благовещенск недорого -припой"]
[null,null,null,null,null,null,null,null,null,"hts 2000 купить в Благовещенск цена -припой"]
[null,null,null,null,null,null,null,null,null,"hts 2000 купить в Благовещенске -rods -алюминия -где -припой -цена"]
[null,null,null,null,null,null,null,null,null,"hts 2000 купить в Благовещенске -алюминия -где -припой -цена"]
[null,null,null,null,null,null,null,null,null,"hts 2000 купить в Благовещенске brazing rods"]
[null,null,null,null,null,null,null,null,null,"hts 2000 купить в Благовещенске rods -brazing"]
[null,null,null,null,null,null,null,null,null,"hts 2000 купить в Благовещенске припой"]
[null,null,null,null,null,null,null,null,null,"hts 2000 купить в Брянск -rods -алюминия -где -дешево -недорого -отзывы -припой -состав -цена"]
[null,null,null,null,null,null,null,null,null,"hts 2000 купить в Брянск -rods -алюминия -где -припой -цена"]
[null,null,null,null,null,null,null,null,null,"hts 2000 купить в Брянск brazing rods"]
[null,null,null,null,null,null,null,null,null,"hts 2000 купить в Брянск rods -brazing"]
[null,null,null,null,null,null,null,null,null,"hts 2000 купить в Брянск дешево -припой"]
[null,null,null,null,null,null,null,null,null,"hts 2000 купить в Брянск ибп"]
[null,null,null,null,null,null,null,null,null,"hts 2000 купить в Брянск недорого -припой"]
[null,null,null,null,null,null,null,null,null,"hts 2000 купить в Брянск цена -припой"]
[null,null,null,null,null,null,null,null,null,"hts 2000 купить в Брянске -rods -алюминия -где -припой -цена"]
[null,null,null,null,null,null,null,null,null,"hts 2000 купить в Брянске -алюминия -где -припой -цена"]
[null,null,null,null,null,null,null,null,null,"hts 2000 купить в Брянске brazing rods"]
[null,null,null,null,null,null,null,null,null,"hts 2000 купить в Брянске rods -brazing"]
[null,null,null,null,null,null,null,null,null,"hts 2000 купить в Брянске припой"]
[null,null,null,null,null,null,null,null,null,"hts 2000 купить в Владикавказ -rods -алюминия -где -дешево -недорого -отзывы -припой -состав -цена"]
[null,null,null,null,null,null,null,null,null,"hts 2000 купить в Владикавказ -rods -алюминия -где -припой -цена"]
[null,null,null,null,null,null,null,null,null,"hts 2000 купить в Владикавказ brazing rods"]
[null,null,null,null,null,null,null,null,null,"hts 2000 купить в Владикавказ rods -brazing"]
[null,null,null,null,null,null,null,null,null,"hts 2000 купить в Владикавказ дешево -припой"]
[null,null,null,null,null,null,null,null,null,"hts 2000 купить в Владикавказ ибп"]
[null,null,null,null,null,null,null,null,null,"hts 2000 купить в Владикавказ недорого -припой"]
[null,null,null,null,null,null,null,null,null,"hts 2000 купить в Владикавказ цена -припой"]
[null,null,null,null,null,null,null,null,null,"hts 2000 купить в Владикавказе -rods -алюминия -где -припой -цена"]
[null,null,null,null,null,null,null,null,null,"hts 2000 купить в Владикавказе -алюминия -где -припой -цена"]
[null,null,null,null,null,null,null,null,null,"hts 2000 купить в Владикавказе brazing rods"]
[null,null,null,null,null,null,null,null,null,"hts 2000 купить в Владикавказе rods -brazing"]
[null,null,null,null,null,null,null,null,null,"hts 2000 купить в Владикавказе припой"]
[null,null,null,null,null,null,null,null,null,"hts 2000 купить в москва -rods -алюминия -где -дешево -недорого -отзывы -припой -состав -цена"]
[null,null,null,null,null,null,null,null,null,"hts 2000 купить в москва -rods -алюминия -где -припой -цена"]
[null,null,null,null,null,null,null,null,null,"hts 2000 купить в москва brazing rods"]
[null,null,null,null,null,null,null,null,null,"hts 2000 купить в москва rods -brazing"]
[null,null,null,null,null,null,null,null,null,"hts 2000 купить в москва дешево -припой"]
[null,null,null,null,null,null,null,null,null,"hts 2000 купить в москва ибп"]
[null,null,null,null,null,null,null,null,null,"hts 2000 купить в москва недорого -припой"]
[null,null,null,null,null,null,null,null,null,"hts 2000 купить в москва цена -припой"]
[null,null,null,null,null,null,null,null,null,"hts 2000 купить в москвае -rods -алюминия -где -припой -цена"]
[null,null,null,null,null,null,null,null,null,"hts 2000 купить в москвае -алюминия -где -припой -цена"]
[null,null,null,null,null,null,null,null,null,"hts 2000 купить в москвае brazing rods"]
[null,null,null,null,null,null,null,null,null,"hts 2000 купить в москвае rods -brazing"]
[null,null,null,null,null,null,null,null,null,"hts 2000 купить в москвае припой"]
[null,null,null,null,null,null,null,null,null,"hts 2000 купить Владикавказ -где -отзывы -припой -состав"]
[null,null,null,null,null,null,null,null,null,"hts 2000 купить Владикавказ brazing rods"]
[null,null,null,null,null,null,null,null,null,"hts 2000 купить Владикавказ rods -brazing"]
[null,null,null,null,null,null,null,null,null,"hts 2000 купить Владикавказ алюминия"]
[null,null,null,null,null,null,null,null,null,"hts 2000 купить Владикавказ алюминия -припой"]
[null,null,null,null,null,null,null,null,null,"hts 2000 купить Владикавказ интернет магазин"]
[null,null,null,null,null,null,null,null,null,"hts 2000 купить Владикавказ припой нтс"]
[null,null,null,null,null,null,null,null,null,"hts 2000 купить Владикавказ цена -припой"]
[null,null,null,null,null,null,null,null,null,"hts 2000 купить москва -где -отзывы -припой -состав"]
[null,null,null,null,null,null,null,null,null,"hts 2000 купить москва brazing rods"]
[null,null,null,null,null,null,null,null,null,"hts 2000 купить москва rods -brazing"]
[null,null,null,null,null,null,null,null,null,"hts 2000 купить москва алюминия"]
[null,null,null,null,null,null,null,null,null,"hts 2000 купить москва алюминия -припой"]
[null,null,null,null,null,null,null,null,null,"hts 2000 купить москва интернет магазин"]
[null,null,null,null,null,null,null,null,null,"hts 2000 купить москва припой нтс"]
[null,null,null,null,null,null,null,null,null,"hts 2000 купить москва цена -припой"]
[null,null,null,null,null,null,null,null,null,"hts 2000 москва -price -купить -припой -цена"]
[null,null,null,null,null,null,null,null,null,"hts 2000 москва -алюминия -купить -припой -цена"]
[null,null,null,null,null,null,null,null,null,"hts 2000 москва -купить -припой -продам -цена"]
[null,null,null,null,null,null,null,null,null,"hts 2000 москва алюминия -купить -пайки"]
[null,null,null,null,null,null,null,null,null,"hts 2000 москва алюминия купить -пайки"]
[null,null,null,null,null,null,null,null,null,"hts 2000 москва где купить"]
[null,null,null,null,null,null,null,null,null,"hts 2000 москва для пайки алюминия -купить -припой"]
[null,null,null,null,null,null,null,null,null,"hts 2000 москва для пайки алюминия купить"]
[null,null,null,null,null,null,null,null,null,"hts 2000 москва купить -алюминия -где -цена"]
[null,null,null,null,null,null,null,null,null,"hts 2000 москва припой"]
[null,null,null,null,null,null,null,null,null,"hts 2000 москва припой -купить"]
[null,null,null,null,null,null,null,null,null,"hts 2000 москва припой для пайки алюминия"]
[null,null,null,null,null,null,null,null,null,"hts 2000 москва цена"]
[null,null,null,null,null,null,null,null,null,"hts 2000 москва цена -купить"]
[null,null,null,null,null,null,null,null,null,"hts 2000 москва цена купить"]
[null,null,null,null,null,null,null,null,null,"hts 2000 москва цена купить -припой"]
[null,null,null,null,null,null,null,null,null,"hts 2000 отзывы купить Альметьевск"]
[null,null,null,null,null,null,null,null,null,"hts 2000 отзывы купить Альметьевск -припой"]
[null,null,null,null,null,null,null,null,null,"hts 2000 отзывы купить Благовещенск"]
[null,null,null,null,null,null,null,null,null,"hts 2000 отзывы купить Благовещенск -припой"]
[null,null,null,null,null,null,null,null,null,"hts 2000 отзывы купить Брянск"]
[null,null,null,null,null,null,null,null,null,"hts 2000 отзывы купить Брянск -припой"]
[null,null,null,null,null,null,null,null,null,"hts 2000 отзывы купить Владикавказ"]
[null,null,null,null,null,null,null,null,null,"hts 2000 отзывы купить Владикавказ -припой"]
[null,null,null,null,null,null,null,null,null,"hts 2000 отзывы купить москва"]
[null,null,null,null,null,null,null,null,null,"hts 2000 отзывы купить москва -припой"]
[null,null,null,null,null,null,null,null,null,"hts 2000 продам Альметьевск"]
[null,null,null,null,null,null,null,null,null,"hts 2000 продам Благовещенск"]
[null,null,null,null,null,null,null,null,null,"hts 2000 продам Брянск"]
[null,null,null,null,null,null,null,null,null,"hts 2000 продам Владикавказ"]
[null,null,null,null,null,null,null,null,null,"hts 2000 продам москва"]
[null,null,null,null,null,null,null,null,null,"hts 2000 состав купить Альметьевск"]
[null,null,null,null,null,null,null,null,null,"hts 2000 состав купить Благовещенск"]
[null,null,null,null,null,null,null,null,null,"hts 2000 состав купить Брянск"]
[null,null,null,null,null,null,null,null,null,"hts 2000 состав купить Владикавказ"]
[null,null,null,null,null,null,null,null,null,"hts 2000 состав купить москва"]
[null,null,null,null,null,null,null,null,null,"hts 2000 состав цена Альметьевск"]
[null,null,null,null,null,null,null,null,null,"hts 2000 состав цена Благовещенск"]
[null,null,null,null,null,null,null,null,null,"hts 2000 состав цена Брянск"]
[null,null,null,null,null,null,null,null,null,"hts 2000 состав цена Владикавказ"]
[null,null,null,null,null,null,null,null,null,"hts 2000 состав цена москва"]
[null,null,null,null,null,null,null,null,null,"hts 2000 цена Альметьевск -rods -алюминия -запорожье -инструкция -купить -припой -состав -черновцы"]
[null,null,null,null,null,null,null,null,null,"hts 2000 цена Альметьевск -купить"]
[null,null,null,null,null,null,null,null,null,"hts 2000 цена Альметьевск -купить -украина"]
[null,null,null,null,null,null,null,null,null,"hts 2000 цена Альметьевск brazing rods"]
[null,null,null,null,null,null,null,null,null,"hts 2000 цена Альметьевск rods -brazing"]
[null,null,null,null,null,null,null,null,null,"hts 2000 цена Альметьевск алюминия"]
[null,null,null,null,null,null,null,null,null,"hts 2000 цена Альметьевск запорожье"]
[null,null,null,null,null,null,null,null,null,"hts 2000 цена Альметьевск инструкция"]
[null,null,null,null,null,null,null,null,null,"hts 2000 цена Альметьевск купить -припой"]
[null,null,null,null,null,null,null,null,null,"hts 2000 цена Альметьевск припой -купить"]
[null,null,null,null,null,null,null,null,null,"hts 2000 цена Альметьевск черновцы"]
[null,null,null,null,null,null,null,null,null,"hts 2000 цена Благовещенск -rods -алюминия -запорожье -инструкция -купить -припой -состав -черновцы"]
[null,null,null,null,null,null,null,null,null,"hts 2000 цена Благовещенск -купить"]
[null,null,null,null,null,null,null,null,null,"hts 2000 цена Благовещенск -купить -украина"]
[null,null,null,null,null,null,null,null,null,"hts 2000 цена Благовещенск brazing rods"]
[null,null,null,null,null,null,null,null,null,"hts 2000 цена Благовещенск rods -brazing"]
[null,null,null,null,null,null,null,null,null,"hts 2000 цена Благовещенск алюминия"]
[null,null,null,null,null,null,null,null,null,"hts 2000 цена Благовещенск запорожье"]
[null,null,null,null,null,null,null,null,null,"hts 2000 цена Благовещенск инструкция"]
[null,null,null,null,null,null,null,null,null,"hts 2000 цена Благовещенск купить -припой"]
[null,null,null,null,null,null,null,null,null,"hts 2000 цена Благовещенск припой -купить"]
[null,null,null,null,null,null,null,null,null,"hts 2000 цена Благовещенск черновцы"]
[null,null,null,null,null,null,null,null,null,"hts 2000 цена Брянск -rods -алюминия -запорожье -инструкция -купить -припой -состав -черновцы"]
[null,null,null,null,null,null,null,null,null,"hts 2000 цена Брянск -купить"]
[null,null,null,null,null,null,null,null,null,"hts 2000 цена Брянск -купить -украина"]
[null,null,null,null,null,null,null,null,null,"hts 2000 цена Брянск brazing rods"]
[null,null,null,null,null,null,null,null,null,"hts 2000 цена Брянск rods -brazing"]
[null,null,null,null,null,null,null,null,null,"hts 2000 цена Брянск алюминия"]
[null,null,null,null,null,null,null,null,null,"hts 2000 цена Брянск запорожье"]
[null,null,null,null,null,null,null,null,null,"hts 2000 цена Брянск инструкция"]
[null,null,null,null,null,null,null,null,null,"hts 2000 цена Брянск купить -припой"]
[null,null,null,null,null,null,null,null,null,"hts 2000 цена Брянск припой -купить"]
[null,null,null,null,null,null,null,null,null,"hts 2000 цена Брянск черновцы"]
[null,null,null,null,null,null,null,null,null,"hts 2000 цена в Альметьевске -купить"]
[null,null,null,null,null,null,null,null,null,"hts 2000 цена в Благовещенске -купить"]
[null,null,null,null,null,null,null,null,null,"hts 2000 цена в Брянске -купить"]
[null,null,null,null,null,null,null,null,null,"hts 2000 цена в Владикавказе -купить"]
[null,null,null,null,null,null,null,null,null,"hts 2000 цена в москвае -купить"]
[null,null,null,null,null,null,null,null,null,"hts 2000 цена Владикавказ -rods -алюминия -запорожье -инструкция -купить -припой -состав -черновцы"]
[null,null,null,null,null,null,null,null,null,"hts 2000 цена Владикавказ -купить"]
[null,null,null,null,null,null,null,null,null,"hts 2000 цена Владикавказ -купить -украина"]
[null,null,null,null,null,null,null,null,null,"hts 2000 цена Владикавказ brazing rods"]
[null,null,null,null,null,null,null,null,null,"hts 2000 цена Владикавказ rods -brazing"]
[null,null,null,null,null,null,null,null,null,"hts 2000 цена Владикавказ алюминия"]
[null,null,null,null,null,null,null,null,null,"hts 2000 цена Владикавказ запорожье"]
[null,null,null,null,null,null,null,null,null,"hts 2000 цена Владикавказ инструкция"]
[null,null,null,null,null,null,null,null,null,"hts 2000 цена Владикавказ купить -припой"]
[null,null,null,null,null,null,null,null,null,"hts 2000 цена Владикавказ припой -купить"]
[null,null,null,null,null,null,null,null,null,"hts 2000 цена Владикавказ черновцы"]
[null,null,null,null,null,null,null,null,null,"hts 2000 цена москва -rods -алюминия -запорожье -инструкция -купить -припой -состав -черновцы"]
[null,null,null,null,null,null,null,null,null,"hts 2000 цена москва -купить"]
[null,null,null,null,null,null,null,null,null,"hts 2000 цена москва -купить -украина"]
[null,null,null,null,null,null,null,null,null,"hts 2000 цена москва brazing rods"]
[null,null,null,null,null,null,null,null,null,"hts 2000 цена москва rods -brazing"]
[null,null,null,null,null,null,null,null,null,"hts 2000 цена москва алюминия"]
[null,null,null,null,null,null,null,null,null,"hts 2000 цена москва запорожье"]
[null,null,null,null,null,null,null,null,null,"hts 2000 цена москва инструкция"]
[null,null,null,null,null,null,null,null,null,"hts 2000 цена москва купить -припой"]
[null,null,null,null,null,null,null,null,null,"hts 2000 цена москва припой -купить"]
[null,null,null,null,null,null,null,null,null,"hts 2000 цена москва черновцы"]
[null,null,null,null,null,null,null,null,null,"hts 2000 цена украина Альметьевск"]
[null,null,null,null,null,null,null,null,null,"hts 2000 цена украина Благовещенск"]
[null,null,null,null,null,null,null,null,null,"hts 2000 цена украина Брянск"]
[null,null,null,null,null,null,null,null,null,"hts 2000 цена украина Владикавказ"]
[null,null,null,null,null,null,null,null,null,"hts 2000 цена украина москва"]
[null,null,null,null,null,null,null,null,null,"hts2000 припой купить в Альметьевск"]
[null,null,null,null,null,null,null,null,null,"hts2000 припой купить в Благовещенск"]
[null,null,null,null,null,null,null,null,null,"hts2000 припой купить в Брянск"]
[null,null,null,null,null,null,null,null,null,"hts2000 припой купить в Владикавказ"]
[null,null,null,null,null,null,null,null,null,"hts2000 припой купить в москва"]
[null,null,null,null,null,null,null,null,null,"где купить hts 2000 Альметьевск"]
[null,null,null,null,null,null,null,null,null,"где купить hts 2000 Альметьевске"]
[null,null,null,null,null,null,null,null,null,"где купить hts 2000 Благовещенск"]
[null,null,null,null,null,null,null,null,null,"где купить hts 2000 Благовещенске"]
[null,null,null,null,null,null,null,null,null,"где купить hts 2000 Брянск"]
[null,null,null,null,null,null,null,null,null,"где купить hts 2000 Брянске"]
[null,null,null,null,null,null,null,null,null,"где купить hts 2000 в Альметьевск"]
[null,null,null,null,null,null,null,null,null,"где купить hts 2000 в Альметьевске"]
[null,null,null,null,null,null,null,null,null,"где купить hts 2000 в Благовещенск"]
[null,null,null,null,null,null,null,null,null,"где купить hts 2000 в Благовещенске"]
[null,null,null,null,null,null,null,null,null,"где купить hts 2000 в Брянск"]
[null,null,null,null,null,null,null,null,null,"где купить hts 2000 в Брянске"]
[null,null,null,null,null,null,null,null,null,"где купить hts 2000 в Владикавказ"]
[null,null,null,null,null,null,null,null,null,"где купить hts 2000 в Владикавказе"]
[null,null,null,null,null,null,null,null,null,"где купить hts 2000 в москва"]
[null,null,null,null,null,null,null,null,null,"где купить hts 2000 в москвае"]
[null,null,null,null,null,null,null,null,null,"где купить hts 2000 Владикавказ"]
[null,null,null,null,null,null,null,null,null,"где купить hts 2000 Владикавказе"]
[null,null,null,null,null,null,null,null,null,"где купить hts 2000 москва"]
[null,null,null,null,null,null,null,null,null,"где купить hts 2000 москвае"]
[null,null,null,null,null,null,null,null,null,"купить в Альметьевск hts 2000 -rods -алюминия -где -ибп -припой -цена"]
[null,null,null,null,null,null,null,null,null,"купить в Благовещенск hts 2000 -rods -алюминия -где -ибп -припой -цена"]
[null,null,null,null,null,null,null,null,null,"купить в Брянск hts 2000 -rods -алюминия -где -ибп -припой -цена"]
[null,null,null,null,null,null,null,null,null,"купить в Владикавказ hts 2000 -rods -алюминия -где -ибп -припой -цена"]
[null,null,null,null,null,null,null,null,null,"купить в москва hts 2000 -rods -алюминия -где -ибп -припой -цена"]
[null,null,null,null,null,null,null,null,null,"купить припой для пайки алюминия Альметьевск"]
[null,null,null,null,null,null,null,null,null,"купить припой для пайки алюминия Благовещенск"]
[null,null,null,null,null,null,null,null,null,"купить припой для пайки алюминия Брянск"]
[null,null,null,null,null,null,null,null,null,"купить припой для пайки алюминия в Альметьевск"]
[null,null,null,null,null,null,null,null,null,"купить припой для пайки алюминия в Благовещенск"]
[null,null,null,null,null,null,null,null,null,"купить припой для пайки алюминия в Брянск"]
[null,null,null,null,null,null,null,null,null,"купить припой для пайки алюминия в Владикавказ"]
[null,null,null,null,null,null,null,null,null,"купить припой для пайки алюминия в москва"]
[null,null,null,null,null,null,null,null,null,"купить припой для пайки алюминия Владикавказ"]
[null,null,null,null,null,null,null,null,null,"купить припой для пайки алюминия москва"]
[null,null,null,null,null,null,null,null,null,"припой hts 2000 Альметьевск -купить"]
[null,null,null,null,null,null,null,null,null,"припой hts 2000 Альметьевск -купить -цена"]
[null,null,null,null,null,null,null,null,null,"припой hts 2000 Благовещенск -купить"]
[null,null,null,null,null,null,null,null,null,"припой hts 2000 Благовещенск -купить -цена"]
[null,null,null,null,null,null,null,null,null,"припой hts 2000 Брянск -купить"]
[null,null,null,null,null,null,null,null,null,"припой hts 2000 Брянск -купить -цена"]
[null,null,null,null,null,null,null,null,null,"припой hts 2000 Владикавказ -купить"]
[null,null,null,null,null,null,null,null,null,"припой hts 2000 Владикавказ -купить -цена"]
[null,null,null,null,null,null,null,null,null,"припой hts 2000 купить Альметьевск -отзывы -цена"]
[null,null,null,null,null,null,null,null,null,"припой hts 2000 купить Благовещенск -отзывы -цена"]
[null,null,null,null,null,null,null,null,null,"припой hts 2000 купить Брянск -отзывы -цена"]
[null,null,null,null,null,null,null,null,null,"припой hts 2000 купить в Альметьевск"]
[null,null,null,null,null,null,null,null,null,"припой hts 2000 купить в Альметьевск -алюминия -нтс -цена"]
[null,null,null,null,null,null,null,null,null,"припой hts 2000 купить в Альметьевск -дешево -недорого -цена"]
[null,null,null,null,null,null,null,null,null,"припой hts 2000 купить в Альметьевск -цена"]
[null,null,null,null,null,null,null,null,null,"припой hts 2000 купить в Альметьевск дешево"]
[null,null,null,null,null,null,null,null,null,"припой hts 2000 купить в Альметьевск недорого"]
[null,null,null,null,null,null,null,null,null,"припой hts 2000 купить в Альметьевске -цена"]
[null,null,null,null,null,null,null,null,null,"припой hts 2000 купить в Благовещенск"]
[null,null,null,null,null,null,null,null,null,"припой hts 2000 купить в Благовещенск -алюминия -нтс -цена"]
[null,null,null,null,null,null,null,null,null,"припой hts 2000 купить в Благовещенск -дешево -недорого -цена"]
[null,null,null,null,null,null,null,null,null,"припой hts 2000 купить в Благовещенск -цена"]
[null,null,null,null,null,null,null,null,null,"припой hts 2000 купить в Благовещенск дешево"]
[null,null,null,null,null,null,null,null,null,"припой hts 2000 купить в Благовещенск недорого"]
[null,null,null,null,null,null,null,null,null,"припой hts 2000 купить в Благовещенске -цена"]
[null,null,null,null,null,null,null,null,null,"припой hts 2000 купить в Брянск"]
[null,null,null,null,null,null,null,null,null,"припой hts 2000 купить в Брянск -алюминия -нтс -цена"]
[null,null,null,null,null,null,null,null,null,"припой hts 2000 купить в Брянск -дешево -недорого -цена"]
[null,null,null,null,null,null,null,null,null,"припой hts 2000 купить в Брянск -цена"]
[null,null,null,null,null,null,null,null,null,"припой hts 2000 купить в Брянск дешево"]
[null,null,null,null,null,null,null,null,null,"припой hts 2000 купить в Брянск недорого"]
[null,null,null,null,null,null,null,null,null,"припой hts 2000 купить в Брянске -цена"]
[null,null,null,null,null,null,null,null,null,"припой hts 2000 купить в Владикавказ"]
[null,null,null,null,null,null,null,null,null,"припой hts 2000 купить в Владикавказ -алюминия -нтс -цена"]
[null,null,null,null,null,null,null,null,null,"припой hts 2000 купить в Владикавказ -дешево -недорого -цена"]
[null,null,null,null,null,null,null,null,null,"припой hts 2000 купить в Владикавказ -цена"]
[null,null,null,null,null,null,null,null,null,"припой hts 2000 купить в Владикавказ дешево"]
[null,null,null,null,null,null,null,null,null,"припой hts 2000 купить в Владикавказ недорого"]
[null,null,null,null,null,null,null,null,null,"припой hts 2000 купить в Владикавказе -цена"]
[null,null,null,null,null,null,null,null,null,"припой hts 2000 купить в москва"]
[null,null,null,null,null,null,null,null,null,"припой hts 2000 купить в москва -алюминия -нтс -цена"]
[null,null,null,null,null,null,null,null,null,"припой hts 2000 купить в москва -дешево -недорого -цена"]
[null,null,null,null,null,null,null,null,null,"припой hts 2000 купить в москва -цена"]
[null,null,null,null,null,null,null,null,null,"припой hts 2000 купить в москва дешево"]
[null,null,null,null,null,null,null,null,null,"припой hts 2000 купить в москва недорого"]
[null,null,null,null,null,null,null,null,null,"припой hts 2000 купить в москвае -цена"]
[null,null,null,null,null,null,null,null,null,"припой hts 2000 купить Владикавказ -отзывы -цена"]
[null,null,null,null,null,null,null,null,null,"припой hts 2000 купить москва -отзывы -цена"]
[null,null,null,null,null,null,null,null,null,"припой hts 2000 москва -купить"]
[null,null,null,null,null,null,null,null,null,"припой hts 2000 москва -купить -цена"]
[null,null,null,null,null,null,null,null,null,"припой hts 2000 отзывы купить Альметьевске"]
[null,null,null,null,null,null,null,null,null,"припой hts 2000 отзывы купить Благовещенске"]
[null,null,null,null,null,null,null,null,null,"припой hts 2000 отзывы купить Брянске"]
[null,null,null,null,null,null,null,null,null,"припой hts 2000 отзывы купить Владикавказе"]
[null,null,null,null,null,null,null,null,null,"припой hts 2000 отзывы купить москвае"]
[null,null,null,null,null,null,null,null,null,"припой hts 2000 цена купить Альметьевск"]
[null,null,null,null,null,null,null,null,null,"припой hts 2000 цена купить Благовещенск"]
[null,null,null,null,null,null,null,null,null,"припой hts 2000 цена купить Брянск"]
[null,null,null,null,null,null,null,null,null,"припой hts 2000 цена купить в Альметьевск"]
[null,null,null,null,null,null,null,null,null,"припой hts 2000 цена купить в Альметьевске"]
[null,null,null,null,null,null,null,null,null,"припой hts 2000 цена купить в Благовещенск"]
[null,null,null,null,null,null,null,null,null,"припой hts 2000 цена купить в Благовещенске"]
[null,null,null,null,null,null,null,null,null,"припой hts 2000 цена купить в Брянск"]
[null,null,null,null,null,null,null,null,null,"припой hts 2000 цена купить в Брянске"]
[null,null,null,null,null,null,null,null,null,"припой hts 2000 цена купить в Владикавказ"]
[null,null,null,null,null,null,null,null,null,"припой hts 2000 цена купить в Владикавказе"]
[null,null,null,null,null,null,null,null,null,"припой hts 2000 цена купить в москва"]
[null,null,null,null,null,null,null,null,null,"припой hts 2000 цена купить в москвае"]
[null,null,null,null,null,null,null,null,null,"припой hts 2000 цена купить Владикавказ"]
[null,null,null,null,null,null,null,null,null,"припой hts 2000 цена купить москва"]
[null,null,null,null,null,null,null,null,null,"припой алюминия медь купить Альметьевск"]
[null,null,null,null,null,null,null,null,null,"припой алюминия медь купить Благовещенск"]
[null,null,null,null,null,null,null,null,null,"припой алюминия медь купить Брянск"]
[null,null,null,null,null,null,null,null,null,"припой алюминия медь купить Владикавказ"]
[null,null,null,null,null,null,null,null,null,"припой алюминия медь купить москва"]
[null,null,null,null,null,null,null,null,null,"припой алюминия цена Альметьевск"]
[null,null,null,null,null,null,null,null,null,"припой алюминия цена Благовещенск"]
[null,null,null,null,null,null,null,null,null,"припой алюминия цена Брянск"]
[null,null,null,null,null,null,null,null,null,"припой алюминия цена Владикавказ"]
[null,null,null,null,null,null,null,null,null,"припой алюминия цена москва"]
[null,null,null,null,null,null,null,null,null,"припой для алюминия hts 2000 купить Альметьевск"]
[null,null,null,null,null,null,null,null,null,"припой для алюминия hts 2000 купить Благовещенск"]
[null,null,null,null,null,null,null,null,null,"припой для алюминия hts 2000 купить Брянск"]
[null,null,null,null,null,null,null,null,null,"припой для алюминия hts 2000 купить Владикавказ"]
[null,null,null,null,null,null,null,null,null,"припой для алюминия hts 2000 купить москва"]
[null,null,null,null,null,null,null,null,null,"припой для пайки алюминия hts 2000 Альметьевск"]
[null,null,null,null,null,null,null,null,null,"припой для пайки алюминия hts 2000 Благовещенск"]
[null,null,null,null,null,null,null,null,null,"припой для пайки алюминия hts 2000 Брянск"]
[null,null,null,null,null,null,null,null,null,"припой для пайки алюминия hts 2000 Владикавказ"]
[null,null,null,null,null,null,null,null,null,"припой для пайки алюминия hts 2000 москва"]
[null,null,null,null,null,null,null,null,null,"припой для пайки алюминия купить Альметьевск"]
[null,null,null,null,null,null,null,null,null,"припой для пайки алюминия купить Благовещенск"]
[null,null,null,null,null,null,null,null,null,"припой для пайки алюминия купить Брянск"]
[null,null,null,null,null,null,null,null,null,"припой для пайки алюминия купить в Альметьевск"]
[null,null,null,null,null,null,null,null,null,"припой для пайки алюминия купить в Альметьевске"]
[null,null,null,null,null,null,null,null,null,"припой для пайки алюминия купить в Благовещенск"]
[null,null,null,null,null,null,null,null,null,"припой для пайки алюминия купить в Благовещенске"]
[null,null,null,null,null,null,null,null,null,"припой для пайки алюминия купить в Брянск"]
[null,null,null,null,null,null,null,null,null,"припой для пайки алюминия купить в Брянске"]
[null,null,null,null,null,null,null,null,null,"припой для пайки алюминия купить в Владикавказ"]
[null,null,null,null,null,null,null,null,null,"припой для пайки алюминия купить в Владикавказе"]
[null,null,null,null,null,null,null,null,null,"припой для пайки алюминия купить в москва"]
[null,null,null,null,null,null,null,null,null,"припой для пайки алюминия купить в москвае"]
[null,null,null,null,null,null,null,null,null,"припой для пайки алюминия купить Владикавказ"]
[null,null,null,null,null,null,null,null,null,"припой для пайки алюминия купить москва"]
[null,null,null,null,null,null,null,null,null,"припой снт 2000 купить в Альметьевск"]
[null,null,null,null,null,null,null,null,null,"припой снт 2000 купить в Благовещенск"]
[null,null,null,null,null,null,null,null,null,"припой снт 2000 купить в Брянск"]
[null,null,null,null,null,null,null,null,null,"припой снт 2000 купить в Владикавказ"]
[null,null,null,null,null,null,null,null,null,"припой снт 2000 купить в москва"]
[null,null,null,null,null,null,null,null,null,""]
[null,null,null,null,null,null,null,null,null,""]
[null,null,null,null,null,null,null,null,null,""]
[null,null,null,null,null,null,null,null,null,""]
[null,null,null,null,null,null,null,null,null,""]
[null,null,null,null,null,null,null,null,null,""]
[null,null,null,null,null,null,null,null,null,""]
[null,null,null,null,null,null,null,null,null,""]
[null,null,null,null,null,null,null,null,null,""]
[null,null,null,null,null,null,null,null,null,""]
[null,null,null,null,null,null,null,null,null,""]
[null,null,null,null,null,null,null,null,null,""]
[null,null,null,null,null,null,null,null,null,""]
[null,null,null,null,null,null,null,null,null,""]
[null,null,null,null,null,null,null,null,null,""]
[null,null,null,null,null,null,null,null,null,""]
[null,null,null,null,null,null,null,null,null,""]
[null,null,null,null,null,null,null,null,null,""]
[null,null,null,null,null,null,null,null,null,""]
[null,null,null,null,null,null,null,null,null,""]
[null,null,null,null,null,null,null,null,null,""]
[null,null,null,null,null,null,null,null,null,""]
[null,null,null,null,null,null,null,null,null,""]
[null,null,null,null,null,null,null,null,null,""]
[null,null,null,null,null,null,null,null,null,""]
[null,null,null,null,null,null,null,null,null,""]
[null,null,null,null,null,null,null,null,null,""]
[null,null,null,null,null,null,null,null,null,""]
[null,null,null,null,null,null,null,null,null,""]
[null,null,null,null,null,null,null,null,null,""]
[null,null,null,null,null,null,null,null,null,""]
[null,null,null,null,null,null,null,null,null,""]
[null,null,null,null,null,null,null,null,null,""]
[null,null,null,null,null,null,null,null,null,""]
[null,null,null,null,null,null,null,null,null,""]
[null,null,null,null,null,null,null,null,null,""]
[null,null,null,null,null,null,null,null,null,""]
[null,null,null,null,null,null,null,null,null,""]
[null,null,null,null,null,null,null,null,null,""]
[null,null,null,null,null,null,null,null,null,""]
[null,null,null,null,null,null,null,null,null,""]
[null,null,null,null,null,null,null,null,null,""]
[null,null,null,null,null,null,null,null,null,""]
[null,null,null,null,null,null,null,null,null,""]
[null,null,null,null,null,null,null,null,null,""]
[null,null,null,null,null,null,null,null,null,""]
[null,null,null,null,null,null,null,null,null,""]
[null,null,null,null,null,null,null,null,null,""]
[null,null,null,null,null,null,null,null,null,""]
[null,null,null,null,null,null,null,null,null,""]
[null,null,null,null,null,null,null,null,null,""]
[null,null,null,null,null,null,null,null,null,""]
[null,null,null,null,null,null,null,null,null,""]
[null,null,null,null,null,null,null,null,null,""]
[null,null,null,null,null,null,null,null,null,""]
[null,null,null,null,null,null,null,null,null,""]
[null,null,null,null,null,null,null,null,null,""]
[null,null,null,null,null,null,null,null,null,""]
[null,null,null,null,null,null,null,null,null,""]
[null,null,null,null,null,null,null,null,null,""]
[null,null,null,null,null,null,null,null,null,""]
[null,null,null,null,null,null,null,null,null,""]
[null,null,null,null,null,null,null,null,null,""]
[null,null,null,null,null,null,null,null,null,""]
[null,null,null,null,null,null,null,null,null,""]
[null,null,null,null,null,null,null,null,null,""]
[null,null,null,null,null,null,null,null,null,""]
[null,null,null,null,null,null,null,null,null,""]
[null,null,null,null,null,null,null,null,null,""]
[null,null,null,null,null,null,null,null,null,""]
[null,null,null,null,null,null,null,null,null,""]
[null,null,null,null,null,null,null,null,null,""]
[null,null,null,null,null,null,null,null,null,""]
[null,null,null,null,null,null,null,null,null,""]
[null,null,null,null,null,null,null,null,null,""]
[null,null,null,null,null,null,null,null,null,""]
[null,null,null,null,null,null,null,null,null,""]
[null,null,null,null,null,null,null,null,null,""]
[null,null,null,null,null,null,null,null,null,""]
[null,null,null,null,null,null,null,null,null,""]
[null,null,null,null,null,null,null,null,null,""]
[null,null,null,null,null,null,null,null,null,""]
[null,null,null,null,null,null,null,null,null,""]
[null,null,null,null,null,null,null,null,null,""]
[null,null,null,null,null,null,null,null,null,""]
[null,null,null,null,null,null,null,null,null,""]
[null,null,null,null,null,null,null,null,null,""]
[null,null,null,null,null,null,null,null,null,""]
[null,null,null,null,null,null,null,null,null,""]
[null,null,null,null,null,null,null,null,null,""]
[null,null,null,null,null,null,null,null,null,""]
[null,null,null,null,null,null,null,null,null,""]
[null,null,null,null,null,null,null,null,null,""]
[null,null,null,null,null,null,null,null,null,""]
[null,null,null,null,null,null,null,null,null,""]
[null,null,null,null,null,null,null,null,null,""]
[null,null,null,null,null,null,null,null,null,""]
[null,null,null,null,null,null,null,null,null,""]
[null,null,null,null,null,null,null,null,null,""]
[null,null,null,null,null,null,null,null,null,""]
[null,null,null,null,null,null,null,null,null,""]
[null,null,null,null,null,null,null,null,null,""]
[null,null,null,null,null,null,null,null,null,""]
[null,null,null,null,null,null,null,null,null,""]
[null,null,null,null,null,null,null,null,null,""]
[null,null,null,null,null,null,null,null,null,""]
[null,null,null,null,null,null,null,null,null,""]
[null,null,null,null,null,null,null,null,null,""]
[null,null,null,null,null,null,null,null,null,""]
[null,null,null,null,null,null,null,null,null,""]
[null,null,null,null,null,null,null,null,null,""]
[null,null,null,null,null,null,null,null,null,""]
[null,null,null,null,null,null,null,null,null,""]
[null,null,null,null,null,null,null,null,null,""]
[null,null,null,null,null,null,null,null,null,""]
[null,null,null,null,null,null,null,null,null,""]
[null,null,null,null,null,null,null,null,null,""]
[null,null,null,null,null,null,null,null,null,""]
[null,null,null,null,null,null,null,null,null,""]
[null,null,null,null,null,null,null,null,null,""]
[null,null,null,null,null,null,null,null,null,""]
[null,null,null,null,null,null,null,null,null,""]
[null,null,null,null,null,null,null,null,null,""]
[null,null,null,null,null,null,null,null,null,""]
[null,null,null,null,null,null,null,null,null,""]
[null,null,null,null,null,null,null,null,null,""]
[null,null,null,null,null,null,null,null,null,""]
[null,null,null,null,null,null,null,null,null,""]
[null,null,null,null,null,null,null,null,null,""]
[null,null,null,null,null,null,null,null,null,""]
[null,null,null,null,null,null,null,null,null,""]
[null,null,null,null,null,null,null,null,null,""]
[null,null,null,null,null,null,null,null,null,""]
[null,null,null,null,null,null,null,null,null,""]
[null,null,null,null,null,null,null,null,null,""]
[null,null,null,null,null,null,null,null,null,""]
[null,null,null,null,null,null,null,null,null,""]
[null,null,null,null,null,null,null,null,null,""]
[null,null,null,null,null,null,null,null,null,""]
[null,null,null,null,null,null,null,null,null,""]
[null,null,null,null,null,null,null,null,null,""]
[null,null,null,null,null,null,null,null,null,""]
[null,null,null,null,null,null,null,null,null,""]
[null,null,null,null,null,null,null,null,null,""]
[null,null,null,null,null,null,null,null,null,""]
[null,null,null,null,null,null,null,null,null,""]
[null,null,null,null,null,null,null,null,null,""]
[null,null,null,null,null,null,null,null,null,""]
[null,null,null,null,null,null,null,null,null,""]
[null,null,null,null,null,null,null,null,null,""]
[null,null,null,null,null,null,null,null,null,""]
[null,null,null,null,null,null,null,null,null,""]
[null,null,null,null,null,null,null,null,null,""]
[null,null,null,null,null,null,null,null,null,""]
[null,null,null,null,null,null,null,null,null,""]
[null,null,null,null,null,null,null,null,null,""]
[null,null,null,null,null,null,null,null,null,""]
[null,null,null,null,null,null,null,null,null,""]
[null,null,null,null,null,null,null,null,null,""]
[null,null,null,null,null,null,null,null,null,""]
[null,null,null,null,null,null,null,null,null,""]
[null,null,null,null,null,null,null,null,null,""]
[null,null,null,null,null,null,null,null,null,""]
[null,null,null,null,null,null,null,null,null,""]
[null,null,null,null,null,null,null,null,null,""]
[null,null,null,null,null,null,null,null,null,""]
[null,null,null,null,null,null,null,null,null,""]
[null,null,null,null,null,null,null,null,null,""]
[null,null,null,null,null,null,null,null,null,""]
[null,null,null,null,null,null,null,null,null,""]
[null,null,null,null,null,null,null,null,null,""]
[null,null,null,null,null,null,null,null,null,""]
[null,null,null,null,null,null,null,null,null,""]
[null,null,null,null,null,null,null,null,null,""]
[null,null,null,null,null,null,null,null,null,""]
[null,null,null,null,null,null,null,null,null,""]
[null,null,null,null,null,null,null,null,null,""]
[null,null,null,null,null,null,null,null,null,""]
[null,null,null,null,null,null,null,null,null,""]
[null,null,null,null,null,null,null,null,null,""]
[null,null,null,null,null,null,null,null,null,""]
[null,null,null,null,null,null,null,null,null,""]
[null,null,null,null,null,null,null,null,null,""]
[null,null,null,null,null,null,null,null,null,""]
[null,null,null,null,null,null,null,null,null,""]
[null,null,null,null,null,null,null,null,null,""]
[null,null,null,null,null,null,null,null,null,""]
[null,null,null,null,null,null,null,null,null,""]
[null,null,null,null,null,null,null,null,null,""]
[null,null,null,null,null,null,null,null,null,""]
[null,null,null,null,null,null,null,null,null,""]
[null,null,null,null,null,null,null,null,null,""]
[null,null,null,null,null,null,null,null,null,""]
[null,null,null,null,null,null,null,null,null,""]
[null,null,null,null,null,null,null,null,null,""]
[null,null,null,null,null,null,null,null,null,""]
[null,null,null,null,null,null,null,null,null,""]